Cogmind - Beta 16.1 @@@ ROGUE MODE // 2026.03.07 @ 22:10:51 Player: raiguard Result: Destroyed by G-34 Mercenary with Small Laser Performance ------------- Evolutions (0) 0 Regions Visited (2) 400 Robots Destroyed (10) 50 Value Destroyed (279) 279 Prototype IDs (0) 0 Alien Tech Used (0) 0 Bonus (0) 0 TOTAL SCORE: 729 Bonus ------- None Cogmind --------- Core Integrity 0/250 Matter 244/300 Energy 250/250 System Corruption 2% Temperature Cool (29) Movement Walking (120) Location -10/Mines Parts ------- > --- POWER (1) -------- Ion Engine > --- PROPULSION (2) --- Aluminum Leg Aluminum Leg > --- UTILITY (2) ------ Small Storage Unit > --- WEAPON (2) ------- Particle Gun Light Assault Rifle > --- INVENTORY (8) ---- Ion Engine Light Nuclear Core Aluminum Leg Aluminum Leg High-capacity Storage Unit Peak State ------------ > --- POWER ------------ Ion Engine > --- PROPULSION ------- Light Treads Light Treads > --- UTILITY ---------- Small Storage Unit > --- WEAPON ----------- EM Pulse Gun Particle Gun > --- INVENTORY -------- Ion Engine Light Nuclear Core Aluminum Leg Aluminum Leg Compact Wheel Compact Wheel EM Pulse Gun Medium Laser [Rating: 8] Favorites ----------- Power Ion Engine Engine Ion Engine Propulsion Light Treads Treads Light Treads Leg Aluminum Leg Utility Small Storage Unit Storage Small Storage Unit Weapon Particle Gun Energy Gun Particle Gun Ballistic Gun Light Assault Rifle Build | -11 -10 -10 ------- Run | Yrd Mat Min Slots Evolved . | . . . Power . | . . . Propulsion . | . . . Utility . | . . . Weapon . | . . . Parts Attached 12 | 6 4 2 Power 1 | 1 . . Engine 1 | 1 . . Core . | . . . Reactor . | . . . Propulsion 4 | 2 . 2 Treads 2 | 2 . . Leg 2 | . . 2 Wheel . | . . . Hover . | . . . Flight . | . . . Utility 1 | 1 . . Device . | . . . Storage 1 | 1 . . Processor . | . . . Hackware . | . . . Protection . | . . . Artifact . | . . . Weapon 6 | 2 4 . Energy Gun 5 | 2 3 . Energy Cannon . | . . . Ballistic Gun 1 | . 1 . Ballistic Cannon . | . . . Launcher . | . . . Special Weapon . | . . . Impact Weapon . | . . . Slashing Weapon . | . . . Piercing Weapon . | . . . Special Melee Weapon . | . . . Unidentified Prototypes . | . . . Parts Lost 3 | . 2 1 Power . | . . . Propulsion 2 | . 1 1 Utility . | . . . Weapon 1 | . 1 . Highest Loss Streak 1 | . 1 1 To Critical Strikes . | . . . Average Backups 6 | 3 7 7 Power 1 | . 1 2 Propulsion 3 | 2 3 3 Utility . | . . 1 Weapon 1 | . 1 . Tool/Special . | . . . Unused Backups 7 | . 3 4 Power 3 | . 1 2 Propulsion 4 | . 2 2 Utility . | . . . Weapon . | . . . Tool/Special . | . . . Average Slot Usage (%) 79 | . 84 72 Engine 14 | . 14 14 Treads 21 | . 27 12 Leg 1 | . . 2 Storage 14 | . 14 14 Energy Gun 19 | . 24 14 Ballistic Gun 8 | . 3 14 Peak Build Rating 8 | 6 8 7 Average Rating 6 | 4 7 6 On Entrance 4 | . 6 7 Avg Prop Armor Cover (%) . | . . . Naked Turns . | . . . Heaviest Build 15 | 14 15 14 Greatest Support 40 | 40 40 20 Greatest Overweight (x) 4 | 4 . . Average Overweight (x) . | 1 . . Largest Inventory Capacity 8 | 8 8 8 Average Capacity 7 | 7 8 8 Most Carried 8 | 6 8 8 Average Carried 7 | 4 7 7 Final Capacity 8 | 8 8 8 Final Carried 8 | 6 8 5 Class Distribution -------------------- 100% | Mutant Dominant Class ---------------- Mutant | -10/Materials Mutant | -10/Mines Resources | -11 -10 -10 ----------- Run | Yrd Mat Min Matter Collected 398 | 260 138 . Remotely . | . . . Salvage Created 421 | . 372 49 Parts 19 | . 17 2 Haulers Intercepted . | . . . Recyclers Shooed . | . . . Parts Field Recycled . | . . . Retrieved Matter . | . . . Parts Self-Destructed . | . . . Prevented . | . . . Parts Restored . | . . . Kills | -11 -10 -10 ------- Run | Yrd Mat Min Combat Hostiles Destroyed 9 | . 8 1 Guns 7 | . 7 . AOE 2 | . 1 1 Classes Destroyed 3 | . 3 . Recycler 1 | . 1 . Swarmer 3 | . 3 . Grunt 6 | . 5 1 Best Kill Streak 3 | . 3 1 Combat Bots Only 3 | . 3 1 Max Kills in Single Turn 1 | . 1 1 Gunslinging . | . . . Exploded 1 | . 1 1 Melee . | . . . Uniques/NPCs Destroyed . | . . . Combat | -11 -10 -10 -------- Run | Yrd Mat Min Hostile Shots Fired 114 | . 76 38 Missed 31 | . 22 9 Hits 83 | . 54 29 Projectile 83 | . 54 29 Damage Taken 960 | . 609 351 Core 253 | . 130 123 Absorbed by Shields . | . . . Core Remaining (%) 100 | 100 . . Volleys Fired 34 | . 25 9 Largest 2 | . 2 2 Hottest 105 | . 105 85 Shots Fired 63 | . 50 13 Gun 63 | . 50 13 Cannon . | . . . Launcher . | . . . Special . | . . . Kinetic 19 | . 10 9 Thermal 29 | . 25 4 Explosive . | . . . Electromagnetic 15 | . 15 . Robot Hit Streak 10 | . 10 7 Robot Miss Streak 3 | . 3 1 Penetration Max . | . . . Secondary Targets . | . . . Shots Hit Robots 40 | . 30 10 Core Hits 17 | . 14 3 Critical Kills . | . . . Critical Parts Destroyed . | . . . Critical Strikes 1 | . . 1 Burn 1 | . . 1 Melee Attacks . | . . . Impact . | . . . Slashing . | . . . Piercing . | . . . Sneak Attacks . | . . . Combat Hostiles . | . . . Follow-up Attacks . | . . . Damage Inflicted 601 | . 504 97 Guns 503 | . 406 97 Cannons . | . . . Explosions 97 | . 97 . Melee . | . . . Ramming 1 | . 1 . Kinetic 95 | . 42 53 Thermal 354 | . 310 44 Explosive . | . . . Electromagnetic 151 | . 151 . Impact . | . . . Slashing . | . . . Piercing . | . . . Highest Corruption 2 | . 2 2 Average Corruption 2 | . 2 2 Corruption Purged . | . . . Corruption Blocked . | . . . Effects 5 | . 2 3 Message Errors 1 | . . 1 Matter Fused 2 | . 1 1 Heat Flow Errors 1 | . . 1 Data Loss (major) 1 | . 1 . Overload Shots . | . . . Overflow Damage . | . . . Projectiles . | . . . Explosions . | . . . Melee . | . . . Knockbacks . | . . . Impact . | . . . Kinetic . | . . . Secondary . | . . . Self-Inflicted Damage . | . . . Shots . | . . . Rammed 1 | . 1 . Targets Rammed 1 | . 1 . Kicked . | . . . Crushed . | . . . Highest Temperature 459 | . 459 127 Average Temperature 108 | . 119 67 Received Heat Transfer 453 | . 243 210 Effects 3 | . 3 . Shutdowns 1 | . 1 . Matter Decay 2 | . 2 . Siege Activations . | . . . Martial Activations . | . . . Shielding Activations . | . . . Robots Disrupted . | . . . Combat Hostiles . | . . . Robots Corrupted . | . . . Combat Hostiles . | . . . Parts Fried . | . . . Impact Corruptions . | . . . Robots Melted . | . . . Combat Hostiles . | . . . Parts Melted 2 | . 2 . Heat Transferred 840 | . 655 185 Parts Sabotaged . | . . . Parts Stolen . | . . . Parts Stripped . | . . . Power Chain Reactions 1 | . 1 . Alert | -11 -10 -10 ------- Run | Yrd Mat Min Maximum Alert Level . | . . . Low Security (%) 100 | 100 100 100 Level 1 . | . . . Level 2 . | . . . Level 3 . | . . . Level 4 . | . . . Level 5 . | . . . High Security . | . . . Max Security . | . . . Peak Influence 53 | . 53 40 Initial 20 | . . 20 Average 9 | . 17 1 Influence Increases 282 | . 242 40 Destroy 0b10 Robot/C 180 | . 160 20 Destroy 0b10 Robot/NC 5 | . 5 . Destroy Leader 50 | . 40 10 Trap Triggered on 0b10 10 | . . 10 Destroy Structure 7 | . 7 . Lose Combat Pursuer 30 | . 30 . Influence Decreases 242 | . 189 53 Entered New Map 33 | . . 33 Time Decay 189 | . 169 20 Lost Part 20 | . 20 . Squads Dispatched 1 | . 1 . Investigation . | . . . Extermination . | . . . Reinforcement 1 | . 1 . Assault . | . . . Garrison . | . . . Intercept . | . . . Searches Triggered . | . . . Construction Impeded . | . . . Haulers Reinforced . | . . . Active Scanning Responses . | . . . Cargo Convoy Interrupts . | . . . Stealth | -11 -10 -10 --------- Run | Yrd Mat Min Distress Signals 2 | . 2 . Communications Jammed . | . . . Distress Signals . | . . . Times Spotted 16 | . 13 3 Peak Tracking Total 4 | . 4 3 Tactical Retreats 2 | . 2 . Traps | -11 -10 -10 ------- Run | Yrd Mat Min Traps Triggered 2 | . 2 . Indirectly . | . . . Trap Hack Attempts . | . . . Triggered . | . . . Disarmed . | . . . Reprogrammed . | . . . Reused 1 | . . 1 Traps Extracted . | . . . Installed 1 | . . 1 Triggered 1 | . . 1 Most Traps Carried 1 | . . 1 Machines | -11 -10 -10 ---------- Run | Yrd Mat Min Machines Disabled . | . . . Max in Single Turn . | . . . Machines Repaired . | . . . Machines Dismantled . | . . . Machines Sabotaged . | . . . Overloaded Fab Kills . | . . . Hacking | -11 -10 -10 --------- Run | Yrd Mat Min Machines Accessed 2 | . 2 . Terminals 2 | . 2 . Fabricators . | . . . Repair Stations . | . . . Recycling Units . | . . . Scanalyzers . | . . . Garrison Access . | . . . Total Hacks 2 | . 2 . Successful . | . . . Failed 2 | . 2 . Catastrophic 2 | . 2 . Database Lockouts . | . . . Manual 2 | . 2 . Terminals 2 | . 2 . Fabricators . | . . . Repair Stations . | . . . Recycling Units . | . . . Scanalyzers . | . . . Garrison Access . | . . . Terminal Hacks . | . . . Fabricator Hacks . | . . . Repair Station Hacks . | . . . Recycling Unit Hacks . | . . . Scanalyzer . | . . . Garrison Access Hacks . | . . . Unauthorized Hacks . | . . . Terminals . | . . . Fabricators . | . . . Repair Stations . | . . . Recycling Units . | . . . Scanalyzers . | . . . Garrison Access . | . . . Data Cores Recovered . | . . . Used . | . . . Hacking Detections 3 | . 3 . Full Trace Events . | . . . Feedback Events . | . . . Feedback Blocked . | . . . Robot Schematics Acquired . | . . . Robots Built . | . . . Authchips . | . . . Time . | . . . Total Robot Build Rating . | . . . Part Schematics Acquired . | . . . Parts Built . | . . . Authchips . | . . . Time . | . . . Total Part Build Rating . | . . . Part Studies Acquired . | . . . Parts Repaired . | . . . Time . | . . . Parts Recycled . | . . . Recycled Matter . | . . . Retrieved Matter . | . . . Retrieved Components . | . . . Parts Scanalyzed . | . . . Part Schematics Acquired . | . . . Parts Damaged . | . . . Bothacking | -11 -10 -10 ------------ Run | Yrd Mat Min Used RIF Installer . | . . . Robots Hacked . | . . . Non-combat . | . . . Combat . | . . . Robot Hacks Applied . | . . . Relay Couplers Released . | . . . Fabnet Peak Effective % . | . . . Robots Rewired . | . . . Allies Hacked . | . . . Hacks Repelled . | . . . Allies | -11 -10 -10 -------- Run | Yrd Mat Min Total Allies . | . . . Largest Group . | . . . Highest-Rated Group . | . . . Highest-Rated Ally . | . . . Total Orders . | . . . Ally Attacks . | . . . Total Damage . | . . . Kills . | . . . Allies Corrupted . | . . . Allies Melted . | . . . Intel | -11 -10 -10 ------- Run | Yrd Mat Min Active Infowar (turns) . | . . . Robot Analysis Total . | . . . Derelict Logs Recovered 1 | . . 1 Drone Launches . | . . . Drone Recoveries . | . . . Exploration | -11 -10 -10 ------------- Run | Yrd Mat Min Turns Passed 937 | 125 457 355 Spaces Moved 472 | 63 209 200 Core 26 | 26 . . Treads 438 | 37 209 192 Legs 8 | . . 8 Wheels . | . . . Hover . | . . . Flight . | . . . Fastest Speed 50 | 50 160 120 Average Speed 161 | 174 160 158 Slowest Speed 250 | 250 160 160 Overloaded Moves . | . . . Propulsion Burnouts . | . . . Robots Hopped . | . . . Potential Cave-ins . | . . . Cave-ins Triggered . | . . . Exploration Rate (%) 32 | 4 53 39 Regions Visited 2 Branch Regions 1 Pre-discovered Areas 1 | . . 1 Known Exits Taken . | . . . Unknown Exits Taken 2 | 1 1 . Scrap Searched . | . . . Spaces Dug . | . . . Terrain Destroyed 7 | . 7 . Melee . | . . . Projectile . | . . . AOE 7 | . 7 . Terrain Rammed . | . . . Walls Destroyed . | . . . Machines Disabled . | . . . Actions | -11 -10 -10 --------- Run | Yrd Mat Min Total 588 | 76 284 228 Wait 47 | . 34 13 Move 470 | 62 208 200 Hop . | . . . Pick Up 15 | 8 6 1 Fast Attach 4 | 4 . . Attach 5 | 2 1 2 Detach . | . . . Swap 4 | . 4 . Drop 7 | . 5 2 Fire 34 | . 25 9 Melee . | . . . Ram . | . . . Kick . | . . . Crush 1 | . 1 . Escape Stasis . | . . . Rewire . | . . . Trap 1 | . . 1 Miscellaneous . | . . . Route ------- -11/Scrapyard -10/Materials -10/Mines History --------- Turn | Location | Event 6 | -11/Scrapyard | Discovered new exit (range 16) 126 | -11/Scrapyard | Entered Materials 313 | -10/Materials | Build established: Mutant 420 | -10/Materials | Discovered new exit (range 16) 566 | -10/Materials | Core integrity fell below 50% 583 | -10/Materials | Entered Mines 592 | -10/Mines | Met a Derelict bent on vengeance 774 | -10/Mines | Learned location of Zion (-7) 796 | -10/Mines | Found a hidden stash of uninstalled traps 924 | -10/Mines | Core integrity fell below 20% 938 | -10/Mines | Destroyed by G-34 Mercenary with Small Laser Last Messages --------------- 00669_ K-01 Serf collects debris. 00772_ System corrupted: Heat flow error (+136). 00774_ Acquired derelict log, extracted data. World map updated: -7/Zion. 00776_ K-01 Serf collects debris. 00796_ A stash of uninstalled traps is collected here! 00800_ Dropped Med. Laser. 00801_ Acquired Explosive Trap. 00890_ VLCBQXY7K TB9 3D0UUBLMJSCL9L 00900_ G-47 Trooper: "SECOND INTRUDER APPROACHING. ELIMINATE." 00904_ Lgt. Treads destroyed. 00906_ G-47 Trooper suffers critical hit (Burn). 00916_ System corrupted: Matter fused (-6). 00930_ Dropped Explosive Trap. 00931_ Installed Explosive Trap. 00936_ G-34 Mercenary triggered Explosive Trap. 00936_ An explosion rips through the floor. 00936_ G-47 Trooper destroyed. Map ----- +----------------------------------------------------+ | ??# #???????# ##???????????????????? | | ??# #???????# #???????????????????? | | ??# #???????## ##??###?????????????? | | ??# #????????## ## ### ##????????????? | | ??# #?????????########## #????????????? | | ??# ########???????????## #????????????? | | ??# #????######### #???????????? | | ??######## #????# #???????????? | | ?????????# #????# #??????????? | | ???????### ###### #### ##?????????## | | ???????# #??# ########????????## | | ???????# #??# ##?????????????### | | ???????# ###########??# #?????????????## | | ???????# #????????????## #?????????????# """ | | ???????# #?????????????# ##????######### """ | | ???###?# #?????????????# u ##??## """ | | ??## ### ##???????????## #### | | ??# &[##???????#### ## ## ## # | | ??# &#?????### #### ## ##$ #? | | ??#### #????## ##??# # #? | | ?????## ##????# ###???# #### #? | | ??????#####?????# ##?????# ##??# #? | | ????????????????# ## ###??????# ???# ## | | ????????????????## ##?## ##????????# ???# # | | ?????????????????###????# ##?????????#####??#$ | | ????????????????????????#@ #?????????????????# | | ????????????????????????# #???????????????# # | | ???????????????????????? = #???????????????# ## | | ???????? ####### % #??????????????# ##? | | ??????????????# g ##??????????????# ??? | | ???????????????# g ???????????????## ??? | | ???????????????####### ????????????????###??? | | ??????????????????????######?????????????????????? | | ?????????????????????????????????????????????????? | | ?????????????????????????????????????????????????? | | ?????????????????????????????????????????????????? | | | | | | | | | | | | | | | | | | | | | | | | | | | | | +----------------------------------------------------+ Best States ------------- Heat Dissipation 25 Energy Generation 10 Energy Capacity 250 Matter Stores 300 Matter Capacity 300 Sight Range 16 Terrain Scan Density 10 Evasion (%) 40 Recoil Reduction 2 Item Schematics ----------------- None Robot Schematics ------------------ None Fabricated ------------ Nothing Repaired ---------- Nothing Studied --------- None Alien Tech Used ----------------- None Achievements -------------- None Challenges ------------ None Game ------ Seed SalvagingCorruptionCharge Manual? 0 Play Time 00:08:51 Cumulative 24.4 hours Start 2026.03.07 @ 22:02:11 End 2026.03.07 @ 22:10:51 Sessions 1 Manual Loads 0 Difficulty Rogue Special Mode None Game No. 29 Rogue 29 Adventurer 0 Explorer 0 Win Type - Total 0 Types 0/0/0/0/0/0/0/0/0/0 Lore% 5 Gallery% 15 Achievement% 10 Wizard Run 0 Options --------- Layout 2 ASCII 0 Keyboard 1 Movement Vi Keybinds 0 Fullscreen 1 Font 48/Smallcaps Map View 50x44 Zoom Use 0% Tactical HUD 1 Map Filters NONE Filters NONE Steam 1 RUN: 9dab11a5-b665-49dc-9486-90a47c5145de